[Event "FIDE WTC Prel-A 2022"]
[Site "Jerusalem"]
[Date "2022.11.20"]
[Round "1.10"]
[White "Wen, Yang"]
[Black "Cawdery, Daniel"]
[Result "1-0"]
[ECO "B31"]
[WhiteElo "2585"]
[BlackElo "2396"]
[Annotator "TA"]
[PlyCount "74"]
[EventDate "2022.11.20"]
[EventType "team-tourn"]
[EventCountry "ISR"]
[SourceTitle "playchess.com"]
[Source "ChessBase"]
[SourceQuality "1"]
[WhiteTeam "China"]
[BlackTeam "South Africa"]
[WhiteTeamCountry "CHN"]
[BlackTeamCountry "RSA"]
[TimeControl "2700+10"]

{[%evp 12,74,28,15,39,13,18,24,32,17,32,15,16,14,27,31,25,7,21,15,26,21,20,18,41,-23,-32,-25,-16,-20,20,29,45,44,45,41,49,44,53,48,62,57,85,85,85,85,89,40,120,124,108,110,137,109,235,206,185,196,249,252,382,371,543,534,854]} 1. e4 {[%emt 0:00:07]} c5 {[%emt 0:00:01]} 2. Nf3 {[%emt 0:00:03]} Nc6 {[%emt 0:00:02]} 3. Bb5 {[%emt 0:00:03]} g6 {[%emt 0:00:06]} 4. O-O {[%emt 0:00:04]} Bg7 {[%emt 0:00:03]} 5. Re1 {[%emt 0:00:02]} e5 {[%emt 0:00:22]} 6. Bxc6 {[%emt 0:00:03]} dxc6 {[%emt 0:00:18]} 7. a3 {[%emt 0:00:02]} Ne7 {[%emt 0:01:00] B31: Sicilian: 2...Nc6 3 Bb5 g6.} 8. b4 {[%emt 0:00:17]} cxb4 {[%emt 0:00:29]} 9. axb4 {[%emt 0:00:03]} Bg4 {[%emt 0:02:10] White has an edge.} 10. d3 {[%emt 0:01:21]} O-O {[%emt 0:00:21]} 11. h3 {[%emt 0:00:20]} Bxf3 {[%emt 0:00:24]} 12. Qxf3 {[%emt 0:00:08] [#]} Qd4 $146 {[%emt 0:03:25]} ({Predecessor:} 12... Nd5 13. c3 Nc7 14. Nd2 Ne6 15. Nc4 b5 16. Na5 Qd7 17. Nb3 Rfc8 18. Ba3 Rd8 {0-1 (46) Pyrich,G (2256)-Pohjosmaki,R (2252) ICCF email 2010}) 13. c3 {[%emt 0:00:34]} Qd7 {[%emt 0:00:07]} 14. Na3 {[%emt 0:00:46]} Rad8 {[%emt 0:05:12]} 15. Rd1 {[%emt 0:00:10]} Qe6 {[%emt 0:01:45]} 16. Be3 {[%emt 0:02:54]} Nc8 {[%emt 0:02:22]} 17. Qe2 {[%emt 0:04:32]} Rd7 {[%emt 0:00:13]} 18. Qa2 {[%emt 0:01:33]} (18. c4 $14) 18... Qxa2 $11 {[%emt 0:01:12]} 19. Rxa2 {[%emt 0:00:02]} Rfd8 {[%emt 0:00:01]} 20. Rad2 {[%emt 0:00:09]} h6 {[%emt 0:01:04]} 21. Nc4 {[%emt 0:02:05]} b6 {[%emt 0:03:20]} 22. Kf1 {[%emt 0:00:20]} f5 {[%emt 0:00:40] [#] Hoping for ...f4.} 23. f3 {[%emt 0:00:07]} Kf7 {[%emt 0:06:44]} 24. g4 {[%emt 0:03:20]} Ke6 {[%emt 0:00:52]} 25. Ke2 {[%emt 0:03:01]} Ne7 {[%emt 0:01:09]} 26. h4 {[%emt 0:00:41]} f4 {[%emt 0:04:17]} 27. Bf2 {[%emt 0:00:09]} Nc8 {[%emt 0:00:33]} 28. Ra1 {[%emt 0:01:25]} Bf6 {[%emt 0:00:53]} 29. g5 {[%emt 0:06:47]} ({Better is} 29. Ra6 $16) 29... Be7 {[%emt 0:01:50]} (29... hxg5 $14 30. hxg5 Bg7) 30. gxh6 $16 {[%emt 0:19:02] Black must now prevent Rg1. White is more active.} Rh8 {[%emt 0:00:21]} 31. d4 {[%emt 0:01:26]} exd4 {[%emt 0:00:11]} 32. cxd4 {[%emt 0:00:03] [#] Threatens to win with Ne5.} Bf6 {[%emt 0:02:23] Prevents Ne5. This costs Black the game.} (32... Bxb4 $16 33. Rc2 Bd6) 33. Rg1 {[%emt 0:04:54] Strongly threatening e5.} ({Don't do} 33. e5 $6 Be7 $16) 33... Rxh6 {[%emt 0:00:07]} 34. Rg4 {[%emt 0:00:03]} Ne7 {[%emt 0:02:36]} (34... Rdh7 {was worth a try.} 35. Rxf4 g5 36. Rxf6+ Rxf6) 35. Nb2 $18 {[%emt 0:12:28]} ({Don't play} 35. Rxf4 Rh5 36. e5 Bg7) 35... Rh8 {[%emt 0:00:51]} (35... Rh5 $142 36. Nd3 (36. Rxf4 Rb5 $16) 36... g5) 36. Nd3 {[%emt 0:00:09]} Rhd8 {[%emt 0:00:10]} (36... Kf7 $142 37. Rxf4 Rdd8 38. Ne5+ Ke6 39. Nxc6 Nxc6) 37. e5 {[%emt 0:00:16]} Kd5 {[%emt 0:03:46] Weighted Error Value: White=0.11 (very precise) /Black=0.29 (precise)} 1-0

[Event "FIDE WTC Prel-A 2022"]
[Site "Jerusalem"]
[Date "2022.11.20"]
[Round "1.11"]
[White "Barrish, Daniel"]
[Black "Bai, Jinshi"]
[Result "0-1"]
[ECO "D70"]
[WhiteElo "2257"]
[BlackElo "2569"]
[Annotator "TA"]
[PlyCount "76"]
[EventDate "2022.11.20"]
[EventType "team-tourn"]
[EventCountry "ISR"]
[SourceTitle "playchess.com"]
[Source "ChessBase"]
[SourceQuality "1"]
[WhiteTeam "South Africa"]
[BlackTeam "China"]
[WhiteTeamCountry "RSA"]
[BlackTeamCountry "CHN"]
[TimeControl "2700+10"]

{[%evp 16,76,30,27,29,22,22,31,42,28,27,16,26,0,-10,-32,26,0,35,-32,0,-206,-212,-199,-211,-284,-298,-620,-622,-629,-630,-630,-530,-864,-217,-235,-227,-224,-224,-376,-379,-382,-386,-389,-379,-389,-381,-478,-476,-481,-481,-481,-481,-627,-619,-627,-627,-618,-612,-578,-577,-564,-533]} 1. d4 {[%emt 0:00:06]} Nf6 {[%emt 0:00:04]} 2. c4 {[%emt 0:00:02]} g6 {[%emt 0:00:02]} 3. f3 {[%emt 0:00:03]} d5 {[%emt 0:00:04]} 4. cxd5 {[%emt 0:00:03]} Nxd5 {[%emt 0:00:03]} 5. e4 {[%emt 0:00:03]} Nb6 {[%emt 0:00:02]} 6. Nc3 {[%emt 0:00:02]} Bg7 {[%emt 0:00:03]} 7. Be3 {[%emt 0:00:03]} O-O {[%emt 0:00:06]} 8. Qd2 {[%emt 0:00:05]} e5 {[%emt 0:00:08]} 9. d5 {[%emt 0:00:05]} c6 $1 {[%emt 0:00:02] D70: Grünfeld: Unusual White 3rd moves (met by ...d5).} 10. h4 {[%emt 0:00:50]} cxd5 {[%emt 0:00:03]} 11. exd5 {[%emt 0:00:02]} (11. Nxd5 Nc6 $15) 11... h5 {[%emt 0:00:05] White is slightly better.} 12. g4 {[%emt 0:01:45]} Na6 $1 {[%emt 0:00:06]} 13. gxh5 {[%emt 0:03:20]} Bf5 {[%emt 0:00:03] [#]} 14. a3 $146 {[%emt 0:03:20] Inhibits Nb4.} (14. Ne4 $5 {[%cal Rh5g6]}) ({Predecessor:} 14. Bg5 f6 15. Be3 Rc8 16. hxg6 Nb4 17. Rd1 Nc4 18. Bxc4 Rxc4 19. h5 Re8 20. Nge2 {1-0 (36) Tang,A (2538)-Mekhitarian,K (2554) Chess.com INT 2020}) 14... Rc8 {[%emt 0:00:27]} 15. hxg6 {[%emt 0:01:54]} Nc5 {[%emt 0:06:26]} (15... fxg6 $15 16. h5 Nc5 17. Bxc5 Rxc5) 16. gxf7+ {[%emt 0:01:03]} (16. Bxc5 $5 Rxc5 17. h5 $14) 16... Rxf7 {[%emt 0:00:02] Strongly threatening ...Nb3.} 17. Rd1 {[%emt 0:01:03]} (17. Bxc5 $14 Rxc5 18. Qg5 Qxg5 19. hxg5) 17... e4 {[%emt 0:02:31] ...Nba4 is the strong threat.} (17... Nb3 $5 {[%cal Rb3d2]} 18. Qg2 Nd4 $11) 18. Nh3 $2 {[%emt 0:09:10] [#] Black converts the advantage convincingly.} (18. Qg2 Nd3+ 19. Bxd3 exd3 $17) (18. Bxc5 $11 {and White stays safe.} Rxc5 19. Qe3 (19. Nxe4 $2 Rxd5 20. Bd3 Rfd7 $19) 19... Rxc3 20. bxc3) 18... Nd3+ $1 $19 {[%emt 0:10:45]} 19. Bxd3 {[%emt 0:00:04]} exd3 {[%emt 0:00:03]} 20. Ng5 {[%emt 0:01:01] [#]} Nc4 $1 {[%emt 0:00:59]} 21. Nxf7 {[%emt 0:01:07]} (21. Qf2 Nxb2 22. O-O Nxd1 23. Nxd1) 21... Kxf7 {[%emt 0:02:37]} 22. Qf2 {[%emt 0:00:46]} Bxc3+ {[%emt 0:02:09]} 23. bxc3 {[%emt 0:00:09]} Qe7 {[%emt 0:00:02]} 24. d6 {[%emt 0:03:24]} Qxe3+ {[%emt 0:02:58]} (24... Qe6 25. O-O Nxe3) 25. Qxe3 {[%emt 0:00:21]} Nxe3 {[%emt 0:00:01][%mdl 64] Discovered Attack. Chess con chili.} 26. Rb1 {[%emt 0:05:45]} d2+ {[%emt 0:03:15][%mdl 64] Discovered Attack} ({And not} 26... Rxc3 27. Kd2 (27. Rxb7+ Ke6 $17) 27... Nd5 28. Rhc1 (28. Rxb7+ $2 Ke6 $19) 28... Rxa3 29. Ra1 (29. Rxb7+ $2 Ke6 $19) 29... Rxa1 30. Rxa1 $15) 27. Kf2 $2 {[%emt 0:01:00]} (27. Kxd2 Nc4+ 28. Ke2 Bxb1 29. Rxb1 Nxd6 30. Kd3) 27... Bxb1 {[%emt 0:02:38]} 28. Kxe3 {[%emt 0:00:07][%mdl 4096] Endgame KRB-KR} Bf5 {[%emt 0:00:06]} 29. Kxd2 {[%emt 0:02:12]} Rd8 {[%emt 0:00:02]} 30. h5 {[%emt 0:00:33]} Rxd6+ {[%emt 0:00:02]} 31. Ke3 {[%emt 0:01:02]} Rd3+ {[%emt 0:04:07] Black is clearly winning.} 32. Kf4 {[%emt 0:00:21]} Bd7 {[%emt 0:00:22]} 33. Rg1 {[%emt 0:04:59]} Bc6 {[%emt 0:00:52]} 34. Rg3 {[%emt 0:01:28]} Rxc3 {[%emt 0:03:15]} 35. h6 {[%emt 0:00:34]} Rc5 {[%emt 0:00:52]} 36. Rg7+ {[%emt 0:01:07]} Kf6 {[%emt 0:00:02]} 37. Kg4 {[%emt 0:00:32]} Rc1 {[%emt 0:00:20] And now ...Rg1+ would win.} 38. Rh7 {[%emt 0:01:10]} Kg6 {[%emt 0:01:14] Weighted Error Value: White=0.66/Black=0.22 (precise)} 0-1

[Event "FIDE WTC Prel-A 2022"]
[Site "Jerusalem"]
[Date "2022.11.20"]
[Round "1.12"]
[White "Li, Di"]
[Black "Mhango, Banele"]
[Result "1/2-1/2"]
[ECO "E04"]
[WhiteElo "2539"]
[BlackElo "2210"]
[Annotator "TA"]
[PlyCount "105"]
[EventDate "2022.11.20"]
[EventType "team-tourn"]
[EventCountry "ISR"]
[SourceTitle "playchess.com"]
[Source "ChessBase"]
[SourceQuality "1"]
[WhiteTeam "China"]
[BlackTeam "South Africa"]
[WhiteTeamCountry "CHN"]
[BlackTeamCountry "RSA"]
[TimeControl "2700+10"]

{[%evp 17,105,0,21,27,12,0,25,22,22,22,20,12,44,26,39,20,31,22,27,0,22,14,25,0,0,6,6,0,0,0,0,8,0,-58,-58,-78,-70,-87,-83,-95,-59,-44,-44,-37,-10,-10,-10,-33,-27,-55,0,0,0,-42,0,0,0,-45,-36,-62,-62,-65,-62,-53,-59,-123,-123,-573,-550,-653,-630,-585,-355,-350,-284,-235,-127,-223,0,-198,-185,-311,3,3,3,3,3,3,3,3]} 1. d4 {[%emt 0:00:02]} d5 {[%emt 0:00:08]} 2. c4 {[%emt 0:00:04]} e6 {[%emt 0:00:06]} 3. Nf3 {[%emt 0:00:08]} a6 {[%emt 0:00:08]} 4. g3 {[%emt 0:00:22]} dxc4 {[%emt 0:00:18]} 5. Bg2 {[%emt 0:00:05]} Nc6 {[%emt 0:00:07]} 6. O-O {[%emt 0:00:22]} Rb8 {[%emt 0:00:23]} 7. e4 {[%emt 0:02:51]} Nf6 {[%emt 0:01:51]} 8. Nc3 {[%emt 0:00:03]} Be7 {[%emt 0:05:21]} 9. d5 {[%emt 0:00:33]} Nb4 {[%emt 0:01:39][%cal Re6d5]} 10. Ne5 $1 {[%emt 0:01:00] E04: Open Catalan: 5 Nf3.} exd5 {[%emt 0:01:14]} 11. exd5 {[%emt 0:00:03]} Nd3 {[%emt 0:01:01]} 12. Nxd3 {[%emt 0:05:14] White has an edge.} cxd3 {[%emt 0:00:01]} 13. Qxd3 {[%emt 0:00:02]} O-O {[%emt 0:00:03]} 14. Be3 {[%emt 0:04:52] [#]} Bd6 $146 {[%emt 0:02:10]} ({Predecessor:} 14... Bg4 15. a3 Qd7 16. Rfe1 Bf5 17. Qd2 Ne8 18. Rac1 Nd6 19. Bd4 Rfe8 20. Nd1 Nb5 {½-½ (52) Campos Gomez,M (2322)-Arenas Vanegas,D (2431) Santa Marta 2022}) 15. h3 {[%emt 0:00:32]} Re8 {[%emt 0:03:42]} 16. Rac1 {[%emt 0:00:37]} Bd7 {[%emt 0:02:33]} 17. Rfd1 {[%emt 0:00:03]} Qc8 {[%emt 0:02:15]} 18. Bd4 {[%emt 0:01:43]} (18. Ba7 $5 {[%cal Ra7b8]}) 18... Bf5 {[%emt 0:01:33]} 19. Qf3 {[%emt 0:08:26]} Ne4 {[%emt 0:00:59]} 20. Re1 {[%emt 0:00:46][%cal Rc3e4]} Nxc3 {[%emt 0:03:42]} 21. Rxe8+ {[%emt 0:00:30]} Qxe8 {[%emt 0:00:02]} 22. Qxc3 {[%emt 0:02:01]} f6 {[%emt 0:00:50]} 23. Re1 {[%emt 0:04:08]} Qa4 {[%emt 0:00:44]} 24. Bc5 {[%emt 0:04:40]} Be5 {[%emt 0:03:24]} ({Much less strong is} 24... Qxa2 25. Bxd6 cxd6 26. Qc7 $16) 25. Rxe5 {[%emt 0:06:24]} (25. Qd2 $11) 25... fxe5 $15 {[%emt 0:00:16]} 26. Qxe5 {[%emt 0:00:04]} Qd7 {[%emt 0:00:08]} 27. Kh2 {[%emt 0:00:25]} Re8 {[%emt 0:00:13]} 28. Qf4 {[%emt 0:00:14]} Qf7 {[%emt 0:00:35][%cal Of5e4]} 29. Qb4 {[%emt 0:01:30] Inhibits Be4.} b6 {[%emt 0:08:04]} 30. Be3 $1 {[%emt 0:00:01]} a5 {[%emt 0:00:01]} 31. Qc4 {[%emt 0:00:25]} h6 {[%emt 0:02:33]} 32. Bf4 {[%emt 0:00:16]} Re7 {[%emt 0:00:17]} 33. Qd4 {[%emt 0:01:45]} Qf6 {[%emt 0:01:03]} 34. Qc4 {[%emt 0:00:24]} Qf7 {[%emt 0:00:18]} 35. Qd4 {[%emt 0:00:03]} Qf6 {[%emt 0:01:03]} 36. Qc4 {[%emt 0:00:01] [#] Black must now prevent d6+.} Qf7 {[%emt 0:00:05]} 37. b3 {[%emt 0:00:28]} Kh7 $36 {[%emt 0:00:48][%mdl 2048] Black has some pressure.} 38. g4 {[%emt 0:00:12]} Bg6 {[%emt 0:00:18][%cal Oe7e4]} 39. Bg3 {[%emt 0:00:06]} Qf6 {[%emt 0:00:43] Against Bh4} 40. h4 {[%emt 0:00:12]} h5 {[%emt 0:00:34]} 41. g5 {[%emt 0:00:11]} (41. gxh5 $15 Bxh5 42. b4) 41... Qb2 $17 {[%emt 0:00:14]} 42. Bxc7 $2 {[%emt 0:00:11][%mdl 8192]} (42. Qa4 $17) 42... Qxf2 $19 {[%emt 0:00:24] [#] Threatens to win with ...Be4.} 43. Bg3 {[%emt 0:00:05]} Qd2 {[%emt 0:00:07] ...Re2 is the strong threat.} 44. Qf4 {[%emt 0:00:11]} Re2 {[%emt 0:00:15]} 45. Qxd2 {[%emt 0:00:09]} Rxd2 {[%emt 0:00:01][%mdl 4096] Endgame KRB-KB} 46. Kg1 {[%emt 0:00:15]} Rd1+ {[%emt 0:00:01]} (46... Rxa2 $19 {Hoping for ...Ra3.} 47. d6 Bf5) 47. Kh2 {[%emt 0:00:03]} (47. Kf2 $17) 47... Rd2 {[%emt 0:00:02] And now ...Be4 would win.} 48. Kg1 $1 {[%emt 0:00:12]} Rxa2 {[%emt 0:00:25] aiming for ...Rb2.} 49. Bc7 {[%emt 0:00:05]} (49. d6 {might work better.} Bf5 50. Bc6) 49... Rxg2+ $2 {[%emt 0:00:07]} 50. Kxg2 $11 {[%emt 0:00:01] The position is equal.} Be4+ {[%emt 0:00:01]} 51. Kg3 {[%emt 0:00:02]} Bxd5 {[%emt 0:00:02]} 52. Bxb6 {[%emt 0:00:01]} Bxb3 {[%emt 0:00:02]} 53. Bxa5 {[%emt 0:00:01] Weighted Error Value: White=0.31/Black=0.36} 1/2-1/2